Cogmind - Beta 12 @@@ ROGUE MODE // 2023.06.29 @ 00:16:52 Player: Big Pilgrim Result: Destroyed by as-74921 with Assembled F-torch Performance ------------- Evolutions (0) 0 Regions Visited (2) 400 Robots Destroyed (3) 15 Value Destroyed (30) 30 Prototype IDs (0) 0 Alien Tech Used (0) 0 Bonus (0) 0 TOTAL SCORE: 445 Bonus ------- None Cogmind --------- Core Integrity 0/250 Matter 139/300 Energy 115/250 System Corruption 0% Temperature Hot (209) Movement Treading (160) Location -10/Mines Parts ------- > --- POWER (1) -------- Ion Engine > --- PROPULSION (2) --- Light Treads > --- UTILITY (2) ------ Medium Storage Unit Structural Scanner > --- WEAPON (2) ------- Improved Light Cannon > --- INVENTORY (10) --- Aluminum Leg Aluminum Leg VTOL Module VTOL Module Propulsion Shielding Tractor Beam Improved Light Cannon Peak State ------------ > --- POWER ------------ Ion Engine > --- PROPULSION ------- VTOL Module VTOL Module > --- UTILITY ---------- Medium Storage Unit Structural Scanner > --- WEAPON ----------- EM Pulse Gun Particle Gun > --- INVENTORY -------- Ion Engine Light Treads Light Treads Aluminum Leg Aluminum Leg Propulsion Shielding Tractor Beam Improved Light Cannon Improved Light Cannon [Rating: 11] Favorites ----------- Power Ion Engine Engine Ion Engine Propulsion Aluminum Leg Treads Light Treads Leg Aluminum Leg Flight Unit VTOL Module Utility Medium Storage Unit Device Structural Scanner Storage Medium Storage Unit Protection Propulsion Shielding Weapon EM Pulse Gun Energy Gun EM Pulse Gun Ballistic Gun Light Assault Rifle Ballistic Cannon Improved Light Cannon Build | -11 -10 -10 ------- Run | Jun Mat Min Slots Evolved . | . . . Power . | . . . Propulsion . | . . . Utility . | . . . Weapon . | . . . Parts Attached 22 | 6 12 4 Power 2 | 1 . 1 Engine 2 | 1 . 1 Core . | . . . Reactor . | . . . Propulsion 8 | 2 4 2 Treads 2 | . . 2 Leg 4 | 2 2 . Wheel . | . . . Hover . | . . . Flight 2 | . 2 . Utility 8 | 1 7 . Device 3 | . 3 . Storage 4 | 1 3 . Processor . | . . . Hackware . | . . . Protection 1 | . 1 . Artifact . | . . . Weapon 4 | 2 1 1 Energy Gun 2 | 1 1 . Energy Cannon . | . . . Ballistic Gun 1 | 1 . . Ballistic Cannon 1 | . . 1 Launcher . | . . . Special Weapon . | . . . Impact Weapon . | . . . Slashing Weapon . | . . . Piercing Weapon . | . . . Special Melee Weapon . | . . . Unidentified Prototypes . | . . . Parts Lost 4 | . . 4 Power 1 | . . 1 Propulsion 1 | . . 1 Utility . | . . . Weapon 2 | . . 2 Highest Loss Streak 4 | . . 4 To Critical Strikes . | . . . Average Slot Usage (%) 98 | . 98 98 Engine 14 | . 14 14 Treads 2 | . . 8 Leg 25 | . 27 19 Device 11 | . 10 14 Storage 14 | . 14 14 Protection 1 | . 2 . Energy Gun 19 | . 16 26 Ballistic Gun 8 | . 11 . Naked Turns . | . . . Heaviest Build 148 | 13 148 21 Greatest Support 40 | 20 20 40 Greatest Overweight (x) 7 | 1 7 1 Average Overweight (x) . | . . . Largest Inventory Capacity 30 | 8 30 10 Average Capacity 9 | 6 9 10 Most Carried 9 | 6 9 9 Average Carried 7 | 3 7 8 Final Capacity 10 | 8 10 10 Final Carried 9 | 6 9 7 Class Distribution -------------------- 100% | Mutant Dominant Class ---------------- Mutant | -10/Materials Mutant | -10/Mines Resources | -11 -10 -10 ----------- Run | Jun Mat Min Matter Collected 249 | 203 46 . Remotely . | . . . Salvage Created 65 | . 46 19 Parts 5 | . 5 . Haulers Intercepted . | . . . Recyclers Shooed . | . . . Parts Field Recycled . | . . . Retrieved Matter . | . . . Parts Self-Destructed . | . . . Prevented . | . . . Kills | -11 -10 -10 ------- Run | Jun Mat Min Combat Hostiles Destroyed 4 | . 3 1 Guns 4 | . 3 1 Classes Destroyed 2 | . 1 1 Swarmer 3 | . 3 . Assembled 1 | . . 1 Best Kill Streak 3 | . 3 1 Combat Bots Only 3 | . 3 1 Max Kills in Single Turn 1 | . 1 1 Gunslinging . | . . . Exploded . | . . . Melee . | . . . Uniques/NPCs Destroyed . | . . . Combat | -11 -10 -10 -------- Run | Jun Mat Min Damage Taken 919 | . 135 784 Core 253 | . 40 213 Absorbed by Shields . | . . . Core Remaining (%) 100 | 100 . . Volleys Fired 10 | . 6 4 Largest 2 | . 2 2 Hottest 105 | . 60 105 Shots Fired 20 | . 12 8 Gun 18 | . 12 6 Cannon 2 | . . 2 Launcher . | . . . Special . | . . . Kinetic 8 | . 6 2 Thermal 4 | . . 4 Explosive . | . . . Electromagnetic 8 | . 6 2 Robot Hit Streak 11 | . 10 11 Robot Miss Streak 2 | . 1 2 Penetration Max . | . . . Secondary Targets 1 | . 1 . Max Gunslinging Chain 1 | . 1 . Shots Hit Robots 13 | . 10 3 Core Hits 6 | . 4 2 Critical Kills . | . . . Critical Parts Destroyed . | . . . Critical Strikes 1 | . 1 . Corrupt 1 | . 1 . Melee Attacks . | . . . Impact . | . . . Slashing . | . . . Piercing . | . . . Sneak Attacks . | . . . Combat Hostiles . | . . . Follow-up Attacks . | . . . Damage Inflicted 163 | . 126 37 Guns 156 | . 119 37 Cannons . | . . . Explosions . | . . . Melee . | . . . Ramming 7 | . 7 . Kinetic 50 | . 50 . Thermal 14 | . . 14 Explosive . | . . . Electromagnetic 92 | . 69 23 Impact . | . . . Slashing . | . . . Piercing . | . . . Highest Corruption . | . . . Average Corruption . | . . . Corruption Purged . | . . . Corruption Blocked . | . . . Overload Shots . | . . . Overflow Damage . | . . . Projectiles . | . . . Explosions . | . . . Melee . | . . . Knockbacks . | . . . Impact . | . . . Kinetic . | . . . Secondary . | . . . Self-Inflicted Damage . | . . . Shots . | . . . Rammed . | . . . Targets Rammed 1 | . 1 . Kicked 1 | . 1 . Crushed . | . . . Highest Temperature 224 | . 40 224 Average Temperature 81 | . 20 133 Received Heat Transfer 256 | . . 256 Siege Activations . | . . . Robots Corrupted . | . . . Combat Hostiles . | . . . Parts Fried . | . . . Impact Corruptions . | . . . Robots Melted . | . . . Combat Hostiles . | . . . Parts Melted . | . . . Heat Transferred 37 | . . 37 Parts Sabotaged . | . . . Parts Stolen . | . . . Parts Stripped . | . . . Power Chain Reactions . | . . . Missiles Intercepted . | . . . Alert | -11 -10 -10 ------- Run | Jun Mat Min Peak Influence 72 | . 72 3 Initial 3 | . . 3 Average 10 | . 17 2 Maximum Alert Level . | . . . Low Security (%) 100 | 100 100 100 Level 1 . | . . . Level 2 . | . . . Level 3 . | . . . Level 4 . | . . . Level 5 . | . . . High Security . | . . . Max Security . | . . . Squads Dispatched 2 | . 2 . Investigation 1 | . 1 . Extermination . | . . . Reinforcement 1 | . 1 . Assault . | . . . Garrison . | . . . Intercept . | . . . Searches Triggered . | . . . Construction Impeded . | . . . Haulers Reinforced . | . . . Active Scanning Responses . | . . . Cargo Convoy Interrupts . | . . . Stealth | -11 -10 -10 --------- Run | Jun Mat Min Distress Signals 2 | . 1 1 Communications Jammed . | . . . Distress Signals . | . . . Times Spotted 22 | . 8 14 Peak Tracking Total 13 | . 4 13 Tactical Retreats . | . . . Traps | -11 -10 -10 ------- Run | Jun Mat Min Traps Triggered . | . . . Indirectly . | . . . Trap Hack Attempts . | . . . Triggered . | . . . Disarmed . | . . . Reprogrammed . | . . . Reused . | . . . Traps Extracted . | . . . Installed . | . . . Triggered 1 | . 1 . Machines | -11 -10 -10 ---------- Run | Jun Mat Min Machines Disabled . | . . . Max in Single Turn . | . . . Machines Repaired . | . . . Machines Sabotaged . | . . . Overloaded Fab Kills . | . . . Hacking | -11 -10 -10 --------- Run | Jun Mat Min Machines Accessed 5 | . 5 . Terminals 4 | . 4 . Fabricators . | . . . Repair Stations . | . . . Recycling Units 1 | . 1 . Scanalyzers . | . . . Garrison Access . | . . . Total Hacks 17 | . 17 . Successful 11 | . 11 . Failed 6 | . 6 . Catastrophic 2 | . 2 . Database Lockouts . | . . . Manual . | . . . Terminals 13 | . 13 . Fabricators . | . . . Repair Stations . | . . . Recycling Units 4 | . 4 . Scanalyzers . | . . . Garrison Access . | . . . Terminal Hacks 8 | . 8 . Record 4 | . 4 . Robot Analysis 1 | . 1 . Alert Level 1 | . 1 . Locate Traps 1 | . 1 . Dispatch Records 1 | . 1 . Fabricator Hacks . | . . . Repair Station Hacks . | . . . Recycling Unit Hacks 3 | . 3 . Report Inventory 1 | . 1 . Retrieve Matter 1 | . 1 . Retrieve Components 1 | . 1 . Scanalyzer . | . . . Garrison Access Hacks . | . . . Unauthorized Hacks . | . . . Terminals . | . . . Fabricators . | . . . Repair Stations . | . . . Recycling Units . | . . . Scanalyzers . | . . . Garrison Access . | . . . Data Cores Recovered . | . . . Used . | . . . Hacking Detections 4 | . 4 . Full Trace Events 2 | . 2 . Feedback Events . | . . . Feedback Blocked . | . . . Robot Schematics Acquired . | . . . Robots Built . | . . . Authchips . | . . . Time . | . . . Total Robot Build Rating . | . . . Part Schematics Acquired . | . . . Parts Built . | . . . Authchips . | . . . Time . | . . . Total Part Build Rating . | . . . Parts Repaired . | . . . Time . | . . . Parts Recycled . | . . . Recycled Matter . | . . . Retrieved Matter . | . . . Retrieved Components 1 | . 1 . Parts Scanalyzed . | . . . Part Schematics Acquired . | . . . Parts Damaged . | . . . Bothacking | -11 -10 -10 ------------ Run | Jun Mat Min Used RIF Installer . | . . . Robots Hacked . | . . . Non-combat . | . . . Combat . | . . . Robot Hacks Applied . | . . . Relay Couplers Released . | . . . Fabnet Peak Effective % . | . . . Robots Rewired . | . . . Allies Hacked . | . . . Hacks Repelled . | . . . Allies | -11 -10 -10 -------- Run | Jun Mat Min Total Allies . | . . . Largest Group . | . . . Highest-Rated Group . | . . . Highest-Rated Ally . | . . . Total Orders . | . . . Ally Attacks . | . . . Total Damage . | . . . Kills . | . . . Allies Corrupted . | . . . Allies Melted . | . . . Intel | -11 -10 -10 ------- Run | Jun Mat Min Robot Analysis Total 1 | . 1 . Derelict Logs Recovered . | . . . Drone Launches . | . . . Drone Recoveries . | . . . Exploration | -11 -10 -10 ------------- Run | Jun Mat Min Turns Passed 851 | 159 485 207 Spaces Moved 580 | 142 334 104 Core 55 | 55 . . Treads 29 | . . 29 Legs 496 | 87 334 75 Wheels . | . . . Hover . | . . . Flight . | . . . Fastest Speed 50 | 50 120 160 Average Speed 129 | 93 128 181 Slowest Speed 610 | 120 610 190 Overloaded Moves . | . . . Propulsion Burnouts . | . . . Robots Hopped . | . . . Cave-ins Triggered . | . . . Exploration Rate (%) 26 | 7 42 29 Regions Visited 2 Branch Regions 1 Pre-discovered Areas . | . . . Known Exits Taken . | . . . Unknown Exits Taken 2 | 1 1 . Scrap Searched . | . . . Spaces Dug . | . . . Terrain Destroyed . | . . . Melee . | . . . Projectile . | . . . AOE . | . . . Terrain Rammed . | . . . Walls Destroyed . | . . . Machines Disabled . | . . . Actions | -11 -10 -10 --------- Run | Jun Mat Min Total 662 | 168 381 113 Wait 10 | 9 . 1 Move 578 | 141 333 104 Hop . | . . . Pick Up 29 | 12 17 . Fast Attach . | . . . Attach 12 | 6 4 2 Detach . | . . . Swap 10 | . 8 2 Drop 12 | . 12 . Fire 10 | . 6 4 Melee . | . . . Ram . | . . . Kick 1 | . 1 . Crush . | . . . Escape Stasis . | . . . Rewire . | . . . Trap . | . . . Miscellaneous . | . . . Route ------- -11/Junkyard -10/Materials -10/Mines History --------- Turn | Location | Event 11 | -11/Junkyard | Discovered new exit (range 16) 160 | -11/Junkyard | Entered Materials 307 | -10/Materials | Build established: Mutant 543 | -10/Materials | Discovered new exit (range 5) 645 | -10/Materials | Entered Mines 696 | -10/Mines | Received a Rocket Launcher from a helpful Derelict 801 | -10/Mines | Assembled infested the area 840 | -10/Mines | Core integrity fell below 50% 849 | -10/Mines | Core integrity fell below 20% 852 | -10/Mines | Destroyed by as-74921 with Assembled F-torch Last Messages --------------- 00694_ 1T-S7P(g): "Need to get rid of a swarm? Done. Need a big hole in the wall? Done." 00695_ 1T-S7P(g): "Need a small hole in the wall? Leave that to the mining laser wimps, I say!" 00696_ 1T-S7P(g): "Would you like a rocket launcher? I know I would if I were you, so I'm going to lend you mine." 00696_ 1T-S7P(g) slips back into the shadows. 00801_ ALERT: Infestation in the mines, dispatching Demolisher response squad. 00806_ K-01 Serf collects debris. 00825_ T-07 Excavator destroyed. 00830_ R-06 Scavenger knocked back. 00832_ R-06 Scavenger destroyed. 00835_ as-37338 destroyed. 00835_ as-79709 destroyed. 00839_ EM Pulse Gun destroyed. 00840_ Y-45 Defender destroyed. 00845_ Ion Engine destroyed. 00845_ Particle Gun destroyed. 00850_ Lgt. Treads destroyed. Map ----- +----------------------------------------------------+ | | | | | | | ?????????????????????????????????????????????????? | | ???????????????????????????#######???????????????? | | ??????????????????????????##############?????????? | | ?????????????????????????#### ########?????????? | | ????????????????????????#### ##?????????? | | ???????????????????????#### ##?????????? | | ???????????????????????### ## ##?????????? | | ???????????????????????## ### ######?????? | | ???????????????????????## ##### ######?????? | | ???????????????????????## ###### #######? | | ???????????????????????### #####?## ######## | | ???????????????????????### ####??####### ### ### | | ????????????????????????## ##????####### ## ## | | ???????????????????####### ##?????#### | | ???????????????????####### ##?????### | | ??????????########### ##????### | | ????###???########### #### ##?###### ] | | ????## #### ##?##### ##### | | ????# ???######## ####### ##?## ###### ## | | ??????????######## ####### ##?## ####?## ## | | ?????????????#### ###### ##?### #######??## ## | | ????????????#### ##### ##?##########???## ## | | ????????????### a @ ##??#####???????## | | ????????????## aa a ##??????????????#### # | | ????????????### a #####??????????????#### # | | ????????????###### %a ######????????????????## # | | ?????????????##### ###??????????????????### # | | ??????????????#### ###??????????????????### | | ??????????????##!%!a ###?????????????????## | | ?????????????? # [ ##?????????????????## | | ?????????????? +%% ### ###?????????????????### | | ?????????## +[ ########?????????????????##### | | ?????????##"!/ #aa a#######???????????????????#### | | ?????????###]!##%! ##?????????????????????????## | | ?????????###### | ??????????????????????????# | | ??????????#### *%! ?????????????????????????? | | ????????????? ### ????????????????????????? | | ???????????? ######## ???????????????????????? | | ????????????############ #????????????????????? | | ????????????####??????### ##????????????????????? | | ???????????????????????######????????????????????? | | ????????????????????????#####????????????????????? | | ?????????????????????????????????????????????????? | | ?????????????????????????????????????????????????? | | ?????????????????????????????????????????????????? | | ?????????????????????????????????????????????????? | | ?????????????????????????????????????????????????? | +----------------------------------------------------+ Best States ------------- Heat Dissipation 25 Energy Generation 10 Energy Capacity 250 Matter Stores 243 Matter Capacity 300 Sight Range 16 Terrain Scan Density 10 Propulsion Shielding 33 Evasion (%) 55 Recoil Reduction 2 Item Schematics ----------------- None Robot Schematics ------------------ None Fabricated ------------ Nothing Alien Tech Used ----------------- None Achievements -------------- Crack Shot Challenges ------------ None Game ------ Seed MappingArmageddonSheargun Manual? 0 Play Time 00:54:54 Cumulative 4.0 hours Start 2023.06.24 @ 21:08:46 End 2023.06.29 @ 00:16:52 Sessions 4 Manual Loads 0 Difficulty Rogue Special Mode None Game No. 4 Rogue 4 Adventurer 0 Explorer 0 Win Type - Total 0 Types 0/0/0/0/0/0/0/0/0 Lore% 1 Gallery% 7 Achievement% 1 Wizard Run 0 Options --------- ASCII 0 Keyboard 0 Movement Numpad Keybinds 0 Fullscreen 2 Font 24/Terminus Map View 76x50 Tactical HUD 1 Map Filters NONE Filters NONE Steam 1 RUN: 8ffb5ab6-2d38-4672-9837-5e516ad756e5